[Event "GrandPrix_30.05"]
[Site "Chess.com"]
[Date "2020.05.30"]
[Round "4"]
[White "VMikhalevski"]
[Black "kpio91"]
[Result "0-1"]
[WhiteElo "2630"]
[BlackElo "2623"]
[TimeControl "600+2"]
[EndTime "9:58:31 PDT"]
[Termination "kpio91 won by checkmate"]

1. Nf3 {[%clk 0:09:53.3]} 1... d5 {[%clk 0:09:57.2]} 2. g3 {[%clk 0:09:50.7]}
2... Nf6 {[%clk 0:09:54.2]} 3. Bg2 {[%clk 0:09:51.4]} 3... g6 {[%clk 0:09:55.3]}
4. O-O {[%clk 0:09:50.2]} 4... Bg7 {[%clk 0:09:56.2]} 5. d4 {[%clk 0:09:50.9]}
5... O-O {[%clk 0:09:56.5]} 6. c4 {[%clk 0:09:51.9]} 6... c6 {[%clk 0:09:57.5]}
7. Qb3 {[%clk 0:09:52.2]} 7... Qb6 {[%clk 0:09:37.4]} 8. Nc3 {[%clk 0:09:52.1]}
8... Rd8 {[%clk 0:09:36.5]} 9. Bd2 {[%clk 0:09:51.3]} 9... Na6 {[%clk
0:09:33.2]} 10. Na4 {[%clk 0:09:13.4]} 10... Qxb3 {[%clk 0:09:14.8]} 11. axb3
{[%clk 0:09:13.8]} 11... Bf5 {[%clk 0:09:06.7]} 12. Rfc1 {[%clk 0:09:11.6]}
12... Be4 {[%clk 0:08:46.6]} 13. e3 {[%clk 0:08:56.8]} 13... e6 {[%clk
0:08:01.4]} 14. Ba5 {[%clk 0:08:51.1]} 14... Rdc8 {[%clk 0:07:57.2]} 15. Be1
{[%clk 0:08:46.4]} 15... c5 {[%clk 0:06:56.1]} 16. Nc3 {[%clk 0:08:37.6]} 16...
Bxf3 {[%clk 0:06:51.7]} 17. Bxf3 {[%clk 0:08:35.9]} 17... cxd4 {[%clk
0:06:53.2]} 18. exd4 {[%clk 0:08:33.9]} 18... Nb4 {[%clk 0:06:54.8]} 19. Be2
{[%clk 0:08:09.2]} 19... Nc6 {[%clk 0:06:37.1]} 20. Rd1 {[%clk 0:07:58.5]} 20...
Rd8 {[%clk 0:06:25.9]} 21. Bf3 {[%clk 0:07:36.5]} 21... Rac8 {[%clk 0:05:27.5]}
22. Ne2 {[%clk 0:07:21.2]} 22... a6 {[%clk 0:05:13.8]} 23. h4 {[%clk 0:06:58.5]}
23... Ne4 {[%clk 0:04:59.6]} 24. Kg2 {[%clk 0:06:25.5]} 24... f5 {[%clk
0:04:59]} 25. Bc3 {[%clk 0:05:52.5]} 25... Kf7 {[%clk 0:04:48.9]} 26. Nf4 {[%clk
0:05:41.7]} 26... dxc4 {[%clk 0:04:40]} 27. bxc4 {[%clk 0:04:25.4]} 27... Nxd4
{[%clk 0:04:07.4]} 28. Bxe4 {[%clk 0:03:59.8]} 28... fxe4 {[%clk 0:04:06.5]} 29.
Ra4 {[%clk 0:03:17.4]} 29... Be5 {[%clk 0:03:23.6]} 30. Nh3 {[%clk 0:03:06.9]}
30... h6 {[%clk 0:03:06.9]} 31. Re1 {[%clk 0:02:55.7]} 31... Nc6 {[%clk
0:01:56.7]} 32. Rxe4 {[%clk 0:02:46.8]} 32... Bxc3 {[%clk 0:01:55.1]} 33. bxc3
{[%clk 0:02:47.3]} 33... e5 {[%clk 0:01:54.2]} 34. Ng1 {[%clk 0:02:30.1]} 34...
Rd3 {[%clk 0:01:25.5]} 35. Ra3 {[%clk 0:02:27.1]} 35... Ke6 {[%clk 0:01:15.4]}
36. Nf3 {[%clk 0:02:19.1]} 36... Kf5 {[%clk 0:01:09.1]} 37. Re2 {[%clk
0:02:12.9]} 37... e4 {[%clk 0:01:04.9]} 38. Ne1 {[%clk 0:02:09.5]} 38... Rd7
{[%clk 0:00:39.3]} 39. Nc2 {[%clk 0:02:09.9]} 39... Ne5 {[%clk 0:00:32.5]} 40.
Nd4+ {[%clk 0:02:04.8]} 40... Kf6 {[%clk 0:00:33.1]} 41. Rxe4 {[%clk 0:02:02.9]}
41... Nxc4 {[%clk 0:00:32.1]} 42. Ra2 {[%clk 0:01:55.7]} 42... Re7 {[%clk
0:00:28.1]} 43. Rf4+ {[%clk 0:01:48.8]} 43... Kg7 {[%clk 0:00:24.7]} 44. Rg4
{[%clk 0:01:48.9]} 44... Re5 {[%clk 0:00:21.6]} 45. Nf3 {[%clk 0:01:39]} 45...
Re6 {[%clk 0:00:16]} 46. Nd4 {[%clk 0:01:37.7]} 46... Re5 {[%clk 0:00:16.7]} 47.
Nf3 {[%clk 0:01:35.8]} 47... Re6 {[%clk 0:00:14.8]} 48. h5 {[%clk 0:01:23.1]}
48... g5 {[%clk 0:00:14.5]} 49. Nd4 {[%clk 0:01:22.3]} 49... Re5 {[%clk
0:00:12.2]} 50. Nf3 {[%clk 0:01:19.6]} 50... Re6 {[%clk 0:00:10.8]} 51. Rd4
{[%clk 0:01:12.1]} 51... Kf6 {[%clk 0:00:05.5]} 52. Nh2 {[%clk 0:01:10.5]} 52...
Ne5 {[%clk 0:00:04.7]} 53. Ra3 {[%clk 0:01:03.6]} 53... Nf7 {[%clk 0:00:02.5]}
54. Rd7 {[%clk 0:00:59.3]} 54... Re7 {[%clk 0:00:02.8]} 55. Ng4+ {[%clk
0:00:58.5]} 55... Ke6 {[%clk 0:00:03.9]} 56. Rd4 {[%clk 0:00:54.9]} 56... Rec7
{[%clk 0:00:04.6]} 57. c4 {[%clk 0:00:48.4]} 57... Rxc4 {[%clk 0:00:05]} 58.
Re3+ {[%clk 0:00:48.4]} 58... Kf5 {[%clk 0:00:05.7]} 59. Rf3+ {[%clk 0:00:37.8]}
59... Ke6 {[%clk 0:00:06.8]} 60. Re3+ {[%clk 0:00:34.4]} 60... Kf5 {[%clk
0:00:07.5]} 61. Rf3+ {[%clk 0:00:24.6]} 61... Ke6 {[%clk 0:00:08.7]} 62. Rf6+
{[%clk 0:00:17.3]} 62... Ke7 {[%clk 0:00:09.8]} 63. Rxf7+ {[%clk 0:00:17]} 63...
Kxf7 {[%clk 0:00:10.9]} 64. Ne5+ {[%clk 0:00:18.3]} 64... Ke6 {[%clk 0:00:11.8]}
65. Nxc4 {[%clk 0:00:19.2]} 65... b5 {[%clk 0:00:12.9]} 66. Ne3 {[%clk
0:00:16.8]} 66... a5 {[%clk 0:00:10.9]} 67. Re4+ {[%clk 0:00:17.1]} 67... Kd6
{[%clk 0:00:08.6]} 68. Nf5+ {[%clk 0:00:17.8]} 68... Kd5 {[%clk 0:00:09.3]} 69.
Re7 {[%clk 0:00:17.5]} 69... a4 {[%clk 0:00:08.9]} 70. Ra7 {[%clk 0:00:17.4]}
70... Kc5 {[%clk 0:00:09.3]} 71. Ra6 {[%clk 0:00:14.4]} 71... Kb4 {[%clk
0:00:09.5]} 72. Nxh6 {[%clk 0:00:13.7]} 72... Ka3 {[%clk 0:00:06.5]} 73. Nf7
{[%clk 0:00:10.9]} 73... b4 {[%clk 0:00:04.9]} 74. h6 {[%clk 0:00:07.9]} 74...
b3 {[%clk 0:00:06.2]} 75. h7 {[%clk 0:00:08.8]} 75... b2 {[%clk 0:00:07.6]} 76.
Rb6 {[%clk 0:00:09.7]} 76... Ka2 {[%clk 0:00:08.7]} 77. f4 {[%clk 0:00:08.9]}
77... gxf4 {[%clk 0:00:08]} 78. g4 {[%clk 0:00:09.9]} 78... a3 {[%clk
0:00:08.5]} 79. g5 {[%clk 0:00:10.5]} 79... Kb1 {[%clk 0:00:09.2]} 80. g6 {[%clk
0:00:09.5]} 80... a2 {[%clk 0:00:10.4]} 81. g7 {[%clk 0:00:10.1]} 81... a1=Q
{[%clk 0:00:11.3]} 82. h8=Q {[%clk 0:00:09.6]} 82... Qa8+ {[%clk 0:00:11.9]} 83.
Kh3 {[%clk 0:00:06.2]} 83... Qf3+ {[%clk 0:00:10.7]} 84. Kh4 {[%clk 0:00:06.9]}
84... Qg3+ {[%clk 0:00:06.8]} 85. Kh5 {[%clk 0:00:08]} 85... Rc5+ {[%clk
0:00:07.6]} 86. Kh6 {[%clk 0:00:08.7]} 86... Qh4+ {[%clk 0:00:03.5]} 87. Kg6
{[%clk 0:00:09.2]} 87... Qg4+ {[%clk 0:00:04.8]} 88. Kf6 {[%clk 0:00:09.6]}
88... Qf5+ {[%clk 0:00:04.8]} 89. Ke7 {[%clk 0:00:10.2]} 89... Rc7+ {[%clk
0:00:06.2]} 90. Kd6 {[%clk 0:00:03.7]} 90... Rd7+ {[%clk 0:00:06.5]} 91. Kc6
{[%clk 0:00:04]} 91... Qd5# {[%clk 0:00:08.4]} 0-1

[Event "GrandPrix_30.05"]
[Site "Chess.com"]
[Date "2020.05.30"]
[Round "4"]
[White "Igor_Lysyj"]
[Black "ChessQueen"]
[Result "0-1"]
[WhiteElo "2495"]
[BlackElo "2326"]
[TimeControl "600+2"]
[EndTime "10:00:10 PDT"]
[Termination "ChessQueen won by resignation"]

1. d4 {[%clk 0:09:58.2]} 1... Nf6 {[%clk 0:10:00.1]} 2. c4 {[%clk 0:09:58.7]}
2... e6 {[%clk 0:10:00.5]} 3. Nf3 {[%clk 0:09:59.5]} 3... b6 {[%clk 0:10:01.2]}
4. g3 {[%clk 0:09:59.8]} 4... Bb7 {[%clk 0:10:01.1]} 5. Bg2 {[%clk 0:09:57.9]}
5... Be7 {[%clk 0:10:02.3]} 6. Nc3 {[%clk 0:09:57.8]} 6... Ne4 {[%clk
0:09:50.3]} 7. Bd2 {[%clk 0:09:57.2]} 7... O-O {[%clk 0:09:16.6]} 8. d5 {[%clk
0:09:54.3]} 8... Nxd2 {[%clk 0:08:56.8]} 9. Qxd2 {[%clk 0:09:53.8]} 9... d6
{[%clk 0:08:46.9]} 10. Nd4 {[%clk 0:09:37.9]} 10... e5 {[%clk 0:08:22.9]} 11.
Nc6 {[%clk 0:09:20.7]} 11... Qd7 {[%clk 0:07:48.4]} 12. Nxb8 {[%clk 0:09:21.2]}
12... Raxb8 {[%clk 0:07:41.5]} 13. h4 {[%clk 0:09:20.1]} 13... f5 {[%clk
0:07:33.4]} 14. Bh3 {[%clk 0:09:12.7]} 14... Bc8 {[%clk 0:07:04.2]} 15. e4
{[%clk 0:08:54.2]} 15... Qe8 {[%clk 0:07:05.1]} 16. exf5 {[%clk 0:08:31]} 16...
Bxf5 {[%clk 0:07:05.8]} 17. Bxf5 {[%clk 0:08:21.7]} 17... Rxf5 {[%clk
0:07:07.7]} 18. Qe2 {[%clk 0:08:11.7]} 18... a6 {[%clk 0:06:47.1]} 19. Ne4
{[%clk 0:07:25]} 19... Qa4 {[%clk 0:05:46]} 20. b3 {[%clk 0:07:08.1]} 20... Qa3
{[%clk 0:05:38.6]} 21. O-O {[%clk 0:06:39.8]} 21... Rbf8 {[%clk 0:05:01.5]} 22.
Kg2 {[%clk 0:06:35.9]} 22... Bd8 {[%clk 0:03:40.9]} 23. Rac1 {[%clk 0:06:24.2]}
23... Rf3 {[%clk 0:03:16.1]} 24. Rc2 {[%clk 0:06:10.9]} 24... a5 {[%clk
0:02:34.5]} 25. Rd1 {[%clk 0:05:55.2]} 25... a4 {[%clk 0:02:31.8]} 26. Rd3
{[%clk 0:05:43]} 26... Rxd3 {[%clk 0:02:30]} 27. Qxd3 {[%clk 0:05:43.4]} 27...
Be7 {[%clk 0:02:25.1]} 28. Qc3 {[%clk 0:04:40.3]} 28... axb3 {[%clk 0:02:22.8]}
29. axb3 {[%clk 0:04:39.8]} 29... Ra8 {[%clk 0:02:23.6]} 30. h5 {[%clk
0:04:20.1]} 30... Qa1 {[%clk 0:02:19.1]} 31. Rc1 {[%clk 0:03:04.5]} 31... Qxc3
{[%clk 0:02:14.7]} 32. Nxc3 {[%clk 0:03:00.9]} 32... Kf7 {[%clk 0:01:48.6]} 33.
Kf3 {[%clk 0:02:52.6]} 33... Bg5 {[%clk 0:01:41]} 34. Rb1 {[%clk 0:02:42.1]}
34... Ke8 {[%clk 0:01:38.8]} 35. Kg4 {[%clk 0:02:33.3]} 35... Be7 {[%clk
0:01:34.4]} 36. Kf5 {[%clk 0:02:10.2]} 36... Kd7 {[%clk 0:01:35.1]} 37. Ke4
{[%clk 0:02:11.1]} 37... Bg5 {[%clk 0:01:30.3]} 38. Kd3 {[%clk 0:02:08.4]} 38...
Be7 {[%clk 0:01:07.4]} 39. Kc2 {[%clk 0:01:55.2]} 39... Rf8 {[%clk 0:01:06.1]}
40. Ne4 {[%clk 0:01:55]} 40... Rf5 {[%clk 0:01:07.2]} 41. Rh1 {[%clk 0:01:39.6]}
41... Rf3 {[%clk 0:00:59.8]} 42. Rh2 {[%clk 0:01:36.3]} 42... h6 {[%clk
0:00:56.5]} 43. Nd2 {[%clk 0:01:24.4]} 43... Rf5 {[%clk 0:00:56]} 44. Kd3 {[%clk
0:01:15.3]} 44... Rf8 {[%clk 0:00:52.1]} 45. Ne4 {[%clk 0:01:00.3]} 45... Rf3+
{[%clk 0:00:51.6]} 46. Kc2 {[%clk 0:01:00.7]} 46... Rf8 {[%clk 0:00:51.2]} 47.
Rh1 {[%clk 0:00:57.3]} 47... Rf5 {[%clk 0:00:51.8]} 48. Kd2 {[%clk 0:00:52.8]}
48... Rf3 {[%clk 0:00:51]} 49. Kc2 {[%clk 0:00:53.1]} 49... Rf5 {[%clk
0:00:52.1]} 50. Rh3 {[%clk 0:00:48.9]} 50... Rf3 {[%clk 0:00:49.9]} 51. Rh2
{[%clk 0:00:44.1]} 51... Bd8 {[%clk 0:00:48.8]} 52. Nd2 {[%clk 0:00:40.1]} 52...
Rf5 {[%clk 0:00:49.4]} 53. Kd1 {[%clk 0:00:30.6]} 53... Be7 {[%clk 0:00:43.9]}
54. Ke2 {[%clk 0:00:29.3]} 54... Rf8 {[%clk 0:00:44.8]} 55. Rh1 {[%clk
0:00:28.2]} 55... Ra8 {[%clk 0:00:45.5]} 56. Ne4 {[%clk 0:00:27.2]} 56... Ra2+
{[%clk 0:00:44.1]} 57. Kf3 {[%clk 0:00:27.5]} 57... Rb2 {[%clk 0:00:42.8]} 58.
Kg4 {[%clk 0:00:28]} 58... Ke8 {[%clk 0:00:38.2]} 59. Ra1 {[%clk 0:00:22.9]}
59... Rxb3 {[%clk 0:00:38.3]} 60. Ra8+ {[%clk 0:00:22.9]} 60... Bd8 {[%clk
0:00:23.5]} 61. Ra4 {[%clk 0:00:15.3]} 61... b5 {[%clk 0:00:21.5]} 62. cxb5
{[%clk 0:00:15.7]} 62... Rxb5 {[%clk 0:00:23.4]} 63. Kf5 {[%clk 0:00:15.6]}
63... Rxd5 {[%clk 0:00:23.6]} 64. Ke6 {[%clk 0:00:15.9]} 64... Rd4 {[%clk
0:00:24.7]} 65. Rxd4 {[%clk 0:00:15.1]} 65... exd4 {[%clk 0:00:26.6]} 66. Kd5
{[%clk 0:00:16.4]} 66... Kd7 {[%clk 0:00:16.4]} 67. Kxd4 {[%clk 0:00:17.3]}
67... Ke6 {[%clk 0:00:17.6]} 68. g4 {[%clk 0:00:17.1]} 68... c6 {[%clk 0:00:16]}
69. f4 {[%clk 0:00:16.8]} 69... Bb6+ {[%clk 0:00:16.9]} 70. Kd3 {[%clk
0:00:17.2]} 70... d5 {[%clk 0:00:18.2]} 71. Ng3 {[%clk 0:00:17.9]} 71... Bd8
{[%clk 0:00:16.2]} 72. Nf5 {[%clk 0:00:17.4]} 72... Bf6 {[%clk 0:00:17.1]} 73.
Ne3 {[%clk 0:00:16]} 73... c5 {[%clk 0:00:16.9]} 74. Nd1 {[%clk 0:00:15.3]}
74... c4+ {[%clk 0:00:17.6]} 75. Ke3 {[%clk 0:00:16.6]} 75... Kd6 {[%clk
0:00:18.3]} 76. Nf2 {[%clk 0:00:16.6]} 76... Kc5 {[%clk 0:00:18.3]} 77. Nh3
{[%clk 0:00:17.3]} 77... d4+ {[%clk 0:00:18.5]} 78. Kd2 {[%clk 0:00:18.6]} 78...
d3 {[%clk 0:00:15.3]} 79. g5 {[%clk 0:00:19.7]} 79... Bb2 {[%clk 0:00:13]} 80.
f5 {[%clk 0:00:20.9]} 80... hxg5 {[%clk 0:00:13.2]} 81. Nxg5 {[%clk 0:00:21.4]}
81... Be5 {[%clk 0:00:08]} 82. f6 {[%clk 0:00:20.8]} 82... gxf6 {[%clk
0:00:06.4]} 83. Ne6+ {[%clk 0:00:17.1]} 83... Kd5 {[%clk 0:00:07.3]} 84. Ng7
{[%clk 0:00:16.2]} 84... Ke4 {[%clk 0:00:05.2]} 85. h6 {[%clk 0:00:16.7]} 85...
Bf4+ {[%clk 0:00:06.4]} 86. Kc3 {[%clk 0:00:18]} 86... Bxh6 {[%clk 0:00:08.2]}
87. Ne6 {[%clk 0:00:19.1]} 87... d2 {[%clk 0:00:08.6]} 88. Kc2 {[%clk
0:00:19.9]} 88... Kd5 {[%clk 0:00:09.1]} 89. Nc7+ {[%clk 0:00:18.8]} 89... Kd4
{[%clk 0:00:09.3]} 90. Ne8 {[%clk 0:00:18.2]} 90... Bg5 {[%clk 0:00:09.1]} 91.
Ng7 {[%clk 0:00:18.6]} 91... Ke3 {[%clk 0:00:09.3]} 92. Kd1 {[%clk 0:00:19.7]}
92... Kd3 {[%clk 0:00:10]} 93. Ne6 {[%clk 0:00:20.3]} 93... c3 {[%clk
0:00:10.5]} 94. Nc5+ {[%clk 0:00:21.5]} 94... Kc4 {[%clk 0:00:10.7]} 95. Ne6
{[%clk 0:00:22.5]} 95... Kb3 {[%clk 0:00:11.2]} 96. Nc5+ {[%clk 0:00:22.4]}
96... Kb2 {[%clk 0:00:11.5]} 97. Na4+ {[%clk 0:00:21.8]} 97... Kb3 {[%clk
0:00:12.5]} 98. Nc5+ {[%clk 0:00:22.8]} 98... Kc4 {[%clk 0:00:08.8]} 99. Ne4
{[%clk 0:00:23.8]} 99... Bh4 {[%clk 0:00:08.6]} 100. Kc2 {[%clk 0:00:21.8]}
100... d1=Q+ {[%clk 0:00:05.4]} 101. Kxd1 {[%clk 0:00:21.9]} 101... Kd3 {[%clk
0:00:06.6]} 102. Nc5+ {[%clk 0:00:22.8]} 102... Kd4 {[%clk 0:00:07.8]} 103. Ne6+
{[%clk 0:00:22.8]} 103... Kc4 {[%clk 0:00:08.7]} 104. Kc2 {[%clk 0:00:19.5]}
104... Bg5 {[%clk 0:00:09.4]} 105. Ng7 {[%clk 0:00:18.6]} 105... Bd2 {[%clk
0:00:08.6]} 106. Ne8 {[%clk 0:00:14.5]} 106... Bg5 {[%clk 0:00:08.2]} 107. Ng7
{[%clk 0:00:13.3]} 107... Kd4 {[%clk 0:00:09.6]} 108. Ne6+ {[%clk 0:00:10.7]}
108... Ke5 {[%clk 0:00:10]} 109. Ng7 {[%clk 0:00:06.4]} 109... Bd2 {[%clk
0:00:10.6]} 110. Kd3 {[%clk 0:00:07.4]} 110... f5 {[%clk 0:00:11.2]} 111. Nh5
{[%clk 0:00:07.6]} 111... f4 {[%clk 0:00:12.4]} 112. Ke2 {[%clk 0:00:08.1]}
112... Kf5 {[%clk 0:00:12.6]} 113. Ng7+ {[%clk 0:00:08]} 113... Ke4 {[%clk
0:00:13.6]} 114. Ne6 {[%clk 0:00:06.8]} 114... f3+ {[%clk 0:00:14.8]} 115. Kd1
{[%clk 0:00:08.1]} 115... f2 {[%clk 0:00:15.1]} 116. Ke2 {[%clk 0:00:09.4]}
116... Be3 {[%clk 0:00:15]} 0-1

[Event "GrandPrix_30.05"]
[Site "Chess.com"]
[Date "2020.05.30"]
[Round "4"]
[White "dzhumagaliev"]
[Black "yamalchess"]
[Result "1/2-1/2"]
[WhiteElo "2194"]
[BlackElo "2350"]
[TimeControl "600+2"]
[EndTime "10:01:05 PDT"]
[Termination "Game drawn by 50-move rule"]

1. Nf3 {[%clk 0:10:01.9]} 1... f5 {[%clk 0:09:59.1]} 2. h4 {[%clk 0:10:03.8]}
2... d6 {[%clk 0:09:53.8]} 3. h5 {[%clk 0:10:05.7]} 3... e5 {[%clk 0:09:53.2]}
4. d4 {[%clk 0:10:07]} 4... e4 {[%clk 0:09:52.8]} 5. Ng5 {[%clk 0:10:07.8]} 5...
Nc6 {[%clk 0:09:33.2]} 6. Bf4 {[%clk 0:09:59.9]} 6... Be7 {[%clk 0:09:31.5]} 7.
Nh3 {[%clk 0:09:17.8]} 7... Nf6 {[%clk 0:09:24.9]} 8. e3 {[%clk 0:09:14.7]} 8...
Be6 {[%clk 0:09:15.2]} 9. c4 {[%clk 0:09:03.5]} 9... Bf7 {[%clk 0:08:50.1]} 10.
Be2 {[%clk 0:09:02.4]} 10... Qd7 {[%clk 0:08:06.4]} 11. a3 {[%clk 0:08:51.8]}
11... a5 {[%clk 0:08:00.5]} 12. Nc3 {[%clk 0:08:48.3]} 12... h6 {[%clk
0:06:08.1]} 13. Bg3 {[%clk 0:08:44.1]} 13... O-O {[%clk 0:06:00.3]} 14. Nf4
{[%clk 0:08:44.5]} 14... Rae8 {[%clk 0:05:48.1]} 15. Rb1 {[%clk 0:08:37.9]}
15... Ng4 {[%clk 0:05:33.2]} 16. b4 {[%clk 0:07:51.9]} 16... axb4 {[%clk
0:05:31.7]} 17. axb4 {[%clk 0:07:53.8]} 17... Bg5 {[%clk 0:05:23.9]} 18. b5
{[%clk 0:07:24.9]} 18... Na5 {[%clk 0:05:13.3]} 19. Qa4 {[%clk 0:06:50.7]} 19...
Ra8 {[%clk 0:04:34]} 20. Qb4 {[%clk 0:06:50.4]} 20... c5 {[%clk 0:04:16.7]} 21.
bxc6 {[%clk 0:06:00.8]} 21... bxc6 {[%clk 0:04:09.9]} 22. Na4 {[%clk 0:05:05.1]}
22... c5 {[%clk 0:03:31.8]} 23. dxc5 {[%clk 0:05:07]} 23... Nc6 {[%clk
0:02:52.3]} 24. Nb6 {[%clk 0:04:26.2]} 24... Nxb4 {[%clk 0:02:19.1]} 25. Nxd7
{[%clk 0:04:25.3]} 25... Rfd8 {[%clk 0:02:01.8]} 26. Rxb4 {[%clk 0:02:25.6]}
26... Rxd7 {[%clk 0:02:00.7]} 27. c6 {[%clk 0:02:18.5]} 27... Rc7 {[%clk
0:01:54.7]} 28. O-O {[%clk 0:01:46.2]} 28... Rxc6 {[%clk 0:01:55.3]} 29. Rfb1
{[%clk 0:01:41.6]} 29... Rac8 {[%clk 0:01:51.8]} 30. Nd5 {[%clk 0:00:57]} 30...
Bxd5 {[%clk 0:01:27.2]} 31. cxd5 {[%clk 0:00:58.9]} 31... Rc1+ {[%clk
0:01:27.1]} 32. Bf1 {[%clk 0:00:59.3]} 32... Ne5 {[%clk 0:00:26.9]} 33. Bxe5
{[%clk 0:00:58.2]} 33... dxe5 {[%clk 0:00:27.9]} 34. g3 {[%clk 0:00:55.6]} 34...
Rxb1 {[%clk 0:00:15]} 35. Rxb1 {[%clk 0:00:56.3]} 35... Kf8 {[%clk 0:00:14.3]}
36. Bh3 {[%clk 0:00:54.9]} 36... Rd8 {[%clk 0:00:13]} 37. Bxf5 {[%clk
0:00:53.5]} 37... Rxd5 {[%clk 0:00:12.9]} 38. Bxe4 {[%clk 0:00:54.8]} 38... Rd2
{[%clk 0:00:13.5]} 39. Rb7 {[%clk 0:00:49.9]} 39... Bf6 {[%clk 0:00:09.7]} 40.
Kg2 {[%clk 0:00:50]} 40... Ke8 {[%clk 0:00:09.9]} 41. Kf3 {[%clk 0:00:49]} 41...
Kd8 {[%clk 0:00:11]} 42. Bf5 {[%clk 0:00:39.2]} 42... Ra2 {[%clk 0:00:10.8]} 43.
Be6 {[%clk 0:00:34.1]} 43... Rd2 {[%clk 0:00:10.7]} 44. Bg4 {[%clk 0:00:31.6]}
44... Ke8 {[%clk 0:00:11]} 45. Kg2 {[%clk 0:00:29.8]} 45... Kd8 {[%clk
0:00:11.1]} 46. Kf1 {[%clk 0:00:27.4]} 46... Ke8 {[%clk 0:00:11]} 47. Ke1 {[%clk
0:00:28]} 47... Ra2 {[%clk 0:00:11.6]} 48. Bd7+ {[%clk 0:00:28]} 48... Kd8
{[%clk 0:00:11.5]} 49. Bc6 {[%clk 0:00:28.2]} 49... Rc2 {[%clk 0:00:11.6]} 50.
Be4 {[%clk 0:00:29.2]} 50... Ra2 {[%clk 0:00:12]} 51. Bd3 {[%clk 0:00:30]} 51...
Kc8 {[%clk 0:00:11.4]} 52. Rb4 {[%clk 0:00:28.2]} 52... Kc7 {[%clk 0:00:11.4]}
53. Rc4+ {[%clk 0:00:28.4]} 53... Kd6 {[%clk 0:00:12.3]} 54. Bc2 {[%clk
0:00:29.2]} 54... Rb2 {[%clk 0:00:11.2]} 55. Ke2 {[%clk 0:00:24.7]} 55... Kd5
{[%clk 0:00:12.1]} 56. Rc8 {[%clk 0:00:25.5]} 56... Kd6 {[%clk 0:00:09.4]} 57.
Kd3 {[%clk 0:00:25.5]} 57... Rb4 {[%clk 0:00:03.2]} 58. f4 {[%clk 0:00:22.8]}
58... exf4 {[%clk 0:00:03.8]} 59. gxf4 {[%clk 0:00:24.7]} 59... Kd7 {[%clk
0:00:04.9]} 60. Ra8 {[%clk 0:00:20.8]} 60... Ke7 {[%clk 0:00:05.3]} 61. e4
{[%clk 0:00:19.2]} 61... Rd4+ {[%clk 0:00:06]} 62. Ke3 {[%clk 0:00:20.3]} 62...
Rc4 {[%clk 0:00:07.1]} 63. Bd3 {[%clk 0:00:19.9]} 63... Rb4 {[%clk 0:00:07.9]}
64. e5 {[%clk 0:00:20.4]} 64... Bh4 {[%clk 0:00:08.9]} 65. Ra7+ {[%clk 0:00:19]}
65... Kf8 {[%clk 0:00:08.7]} 66. e6 {[%clk 0:00:13.5]} 66... Bf6 {[%clk
0:00:06.4]} 67. Rf7+ {[%clk 0:00:12.9]} 67... Ke8 {[%clk 0:00:06.9]} 68. Bg6
{[%clk 0:00:13.9]} 68... Kd8 {[%clk 0:00:07.5]} 69. Rd7+ {[%clk 0:00:14.9]}
69... Kc8 {[%clk 0:00:07.7]} 70. Kf3 {[%clk 0:00:13.7]} 70... Rb7 {[%clk
0:00:06.8]} 71. Rd5 {[%clk 0:00:12.2]} 71... Kc7 {[%clk 0:00:06.5]} 72. Kg4
{[%clk 0:00:12.7]} 72... Rb6 {[%clk 0:00:05.8]} 73. Kf5 {[%clk 0:00:11.4]} 73...
Rd6 {[%clk 0:00:05.6]} 74. Rc5+ {[%clk 0:00:12.1]} 74... Kd8 {[%clk 0:00:06.7]}
75. Ra5 {[%clk 0:00:12.7]} 75... Rc6 {[%clk 0:00:07]} 76. Ra8+ {[%clk
0:00:13.1]} 76... Rc8 {[%clk 0:00:08]} 77. Ra7 {[%clk 0:00:13.8]} 77... Rc7
{[%clk 0:00:08.9]} 78. Ra6 {[%clk 0:00:14.6]} 78... Rc5+ {[%clk 0:00:09.9]} 79.
Ke4 {[%clk 0:00:15.3]} 79... Ke7 {[%clk 0:00:10.7]} 80. f5 {[%clk 0:00:15]}
80... Re5+ {[%clk 0:00:11.2]} 81. Kd3 {[%clk 0:00:16.1]} 81... Rd5+ {[%clk
0:00:11.7]} 82. Kc4 {[%clk 0:00:17.2]} 82... Rd4+ {[%clk 0:00:11.3]} 83. Kc5
{[%clk 0:00:18]} 83... Rd1 {[%clk 0:00:12.2]} 84. Ra7+ {[%clk 0:00:19.1]} 84...
Kd8 {[%clk 0:00:13.4]} 85. Rf7 {[%clk 0:00:19.1]} 85... Rc1+ {[%clk 0:00:13]}
86. Kd5 {[%clk 0:00:19.9]} 86... Rd1+ {[%clk 0:00:13.9]} 87. Ke4 {[%clk
0:00:21.3]} 87... Re1+ {[%clk 0:00:14.8]} 88. Kd3 {[%clk 0:00:22.3]} 88... Rd1+
{[%clk 0:00:15.4]} 89. Kc2 {[%clk 0:00:23.3]} 89... Rd5 {[%clk 0:00:16]} 90. Kb3
{[%clk 0:00:23.1]} 90... Rd4 {[%clk 0:00:16.3]} 91. Ka2 {[%clk 0:00:22.1]} 91...
Rd5 {[%clk 0:00:16.7]} 92. Ka3 {[%clk 0:00:22.6]} 92... Rd4 {[%clk 0:00:17.9]}
93. Rf8+ {[%clk 0:00:22.6]} 93... Ke7 {[%clk 0:00:17.6]} 94. Re8+ {[%clk
0:00:23.8]} 94... Kd6 {[%clk 0:00:18.6]} 95. Kb3 {[%clk 0:00:24.8]} 95... Re4
{[%clk 0:00:19.3]} 96. Kc2 {[%clk 0:00:24.7]} 96... Bg5 {[%clk 0:00:19.4]} 97.
Kd3 {[%clk 0:00:25.8]} 97... Re1 {[%clk 0:00:19.6]} 98. Rf8 {[%clk 0:00:22]}
98... Bf6 {[%clk 0:00:20]} 99. Rf7 {[%clk 0:00:21.8]} 99... Re5 {[%clk
0:00:20.7]} 100. Kc4 {[%clk 0:00:22.8]} 100... Rc5+ {[%clk 0:00:20.8]} 101. Kb4
{[%clk 0:00:24.1]} 101... Re5 {[%clk 0:00:21.6]} 102. Rd7+ {[%clk 0:00:25]}
102... Kc6 {[%clk 0:00:22.3]} 103. Rd1 {[%clk 0:00:23.4]} 103... Kc7 {[%clk
0:00:22.6]} 104. Kc4 {[%clk 0:00:23.3]} 104... Re4+ {[%clk 0:00:22.6]} 105. Kd5
{[%clk 0:00:22]} 105... Re5+ {[%clk 0:00:23.2]} 106. Kc4 {[%clk 0:00:23.2]}
106... Re4+ {[%clk 0:00:24.2]} 107. Kb5 {[%clk 0:00:23.1]} 107... Rd4 {[%clk
0:00:23.2]} 108. Rc1+ {[%clk 0:00:22.9]} 108... Kd8 {[%clk 0:00:22.1]} 109. Kc6
{[%clk 0:00:22]} 109... Rd2 {[%clk 0:00:21.7]} 110. Rc5 {[%clk 0:00:18.2]}
110... Rd3 {[%clk 0:00:22.1]} 111. Ra5 {[%clk 0:00:14.4]} 111... Rc3+ {[%clk
0:00:21.8]} 112. Kd5 {[%clk 0:00:13.3]} 112... Rd3+ {[%clk 0:00:22.5]} 113. Ke4
{[%clk 0:00:14.4]} 113... Rd4+ {[%clk 0:00:23.6]} 114. Ke3 {[%clk 0:00:15.7]}
114... Rd1 {[%clk 0:00:24]} 115. Ra8+ {[%clk 0:00:15.2]} 115... Ke7 {[%clk
0:00:24.2]} 116. Re8+ {[%clk 0:00:14.3]} 116... Kd6 {[%clk 0:00:25]} 117. Bh7
{[%clk 0:00:13]} 117... Rd5 {[%clk 0:00:24.1]} 118. Kf3 {[%clk 0:00:14.2]}
118... Kc7 {[%clk 0:00:20.9]} 119. Rf8 {[%clk 0:00:14.2]} 119... Re5 {[%clk
0:00:21.4]} 120. Rf7+ {[%clk 0:00:14.1]} 120... Kd6 {[%clk 0:00:22]} 121. Bg6
{[%clk 0:00:15.4]} 121... Kc6 {[%clk 0:00:22.3]} 122. Kf4 {[%clk 0:00:16.3]}
122... Re1 {[%clk 0:00:22.4]} 123. Rd7 {[%clk 0:00:16.9]} 123... Rf1+ {[%clk
0:00:22.1]} 124. Ke3 {[%clk 0:00:18.1]} 124... Re1+ {[%clk 0:00:22.6]} 125. Kd2
{[%clk 0:00:18.8]} 125... Re4 {[%clk 0:00:22.7]} 126. Kd3 {[%clk 0:00:19.1]}
126... Re1 {[%clk 0:00:23]} 127. Kc2 {[%clk 0:00:17.5]} 127... Re5 {[%clk
0:00:22.3]} 128. Kb3 {[%clk 0:00:18]} 128... Rb5+ {[%clk 0:00:22.2]} 129. Ka4
{[%clk 0:00:18.6]} 129... Re5 {[%clk 0:00:21.9]} 130. Rd1 {[%clk 0:00:17.4]}
1/2-1/2